fUSD/lending_fUSD_20250120
["ID","MTS","AMOUNT","RATE_DAILY","PERIOD"]
[349705787,1737385853792,-308.735476,0.00021639,2]
[349705788,1737385853801,-598.38,0.00021639,2]
[349705789,1737385853811,-1140.21,0.00021639,2]
[349705790,1737385853820,-500.0,0.00021639,2]
[349705791,1737385853831,-500.0,0.00021639,2]
[349705792,1737385853841,-500.0,0.00021639,2]
[349705793,1737385853850,-500.0,0.00021639,2]
[349705794,1737385853860,-500.0,0.00021639,2]
[349705795,1737385853870,-982.87,0.00021639,2]
[349705796,1737385853880,-587.84,0.00021639,2]
[349705797,1737385853890,-870.78,0.00021639,2]
[349705798,1737385853900,-983.64,0.00021639,2]
[349705799,1737385853912,-500.0,0.00021639,2]
[349705800,1737385853921,-1063.31,0.00021639,2]
[349705801,1737385853930,-592.84,0.00021639,2]
[349705802,1737385853939,-500.0,0.00021639,2]
[349705803,1737385853949,-1209.6,0.00021639,2]
[349705804,1737385853958,-500.0,0.00021639,2]
[349705805,1737385853968,-500.0,0.00021639,2]
[349705806,1737385853978,-1996.79,0.00021639,2]
[349705807,1737385853987,-713.07,0.00021639,2]
[349705808,1737385853996,-500.0,0.00021639,2]
[349705809,1737385854005,-500.0,0.00021639,2]
[349705810,1737385854015,-500.0,0.00021639,2]
[349705811,1737385854025,-929.71,0.00021639,2]
[349705812,1737385854034,-500.0,0.0002164,2]
[349705813,1737385854043,-500.0,0.0002164,2]
[349705814,1737385854053,-173.68940926,0.0002164,2]
[349705815,1737385854062,-500.0,0.0002164,2]
[349705816,1737385854071,-648.28,0.0002164,2]
[349705817,1737385854080,-500.0,0.0002164,2]
[349705818,1737385854089,-500.0,0.0002164,2]
[349705819,1737385854099,-500.0,0.0002164,2]
[349705820,1737385854108,-500.0,0.0002164,2]
[349705821,1737385854117,-500.0,0.0002164,2]
[349705822,1737385854127,-500.0,0.0002164,2]
[349705823,1737385854136,-500.0,0.0002164,2]
[349705824,1737385854145,-500.0,0.0002164,2]
[349705825,1737385854155,-500.0,0.0002164,2]
[349705826,1737385854164,-500.0,0.0002164,2]
[349705827,1737385854173,-500.0,0.0002164,2]
[349705828,1737385854182,-500.0,0.0002164,2]
[349705829,1737385854191,-500.0,0.0002164,2]
[349705830,1737385854202,-500.0,0.0002164,2]
[349705831,1737385854212,-500.0,0.0002164,2]
[349705832,1737385854223,-500.0,0.0002164,2]
[349705833,1737385854232,-500.0,0.0002164,2]
[349705834,1737385854242,-500.0,0.0002164,2]
[349705835,1737385854251,-588.23,0.0002164,2]
[349705836,1737385854260,-500.0,0.0002164,2]
[349705837,1737385854270,-500.0,0.0002164,2]
[349705838,1737385854281,-500.0,0.0002164,2]
[349705839,1737385854291,-500.0,0.0002164,2]
[349705840,1737385854301,-500.0,0.0002164,2]
[349705841,1737385854311,-500.0,0.0002164,2]
[349705842,1737385854321,-500.0,0.0002164,2]
[349705843,1737385854330,-500.0,0.0002164,2]
[349705844,1737385854339,-500.0,0.0002164,2]
[349705845,1737385854348,-500.0,0.0002164,2]
[349705846,1737385854357,-500.0,0.0002164,2]
[349705847,1737385854366,-512.3,0.0002164,2]
[349705848,1737385854376,-654.4,0.0002164,2]
[349705849,1737385854386,-1583.17,0.0002164,2]
[349705850,1737385854395,-612.74,0.0002164,2]
[349705851,1737385854406,-649.57,0.0002164,2]
[349705852,1737385854415,-1466.09,0.0002164,2]
[349705853,1737385854424,-500.0,0.0002164,2]
[349705854,1737385854434,-697.48,0.0002164,2]
[349705855,1737385854443,-810.55,0.0002164,2]
[349705856,1737385854452,-618.28,0.0002164,2]
[349705857,1737385854462,-970.54,0.0002164,2]
[349705858,1737385854471,-617.45,0.0002164,2]
[349705859,1737385854482,-500.0,0.0002164,2]
[349705860,1737385854491,-500.0,0.0002164,2]
[349705861,1737385854501,-500.0,0.0002164,2]
[349705862,1737385854510,-1000.0,0.0002164,2]
[349705863,1737385854520,-500.0,0.0002164,2]
[349705864,1737385854530,-1121.34,0.0002164,2]
[349705865,1737385854539,-579.82,0.0002164,2]
[349705866,1737385854552,-500.0,0.0002164,2]
[349705867,1737385854562,-500.0,0.0002164,2]
[349705868,1737385854571,-266.83987403,0.0002164,2]
[349705869,1737385854580,-562.5,0.0002164,2]
[349705870,1737385854591,-500.0,0.0002164,2]
[349705871,1737385854600,-500.0,0.0002164,2]
[349705872,1737385854609,-1380.96,0.0002164,2]
[349705873,1737385854619,-465.59987594,0.0002164,2]
[349705874,1737385854629,-1405.74,0.0002164,2]
[349705875,1737385854639,-1348.38,0.0002164,2]
[349705876,1737385854650,-500.0,0.0002164,2]
[349705877,1737385854661,-500.0,0.0002164,2]
[349705878,1737385854670,-635.89,0.0002164,2]
[349705879,1737385854680,-500.0,0.0002164,2]
[349705880,1737385854733,-500.0,0.0002164,2]
[349705881,1737385854743,-500.0,0.0002164,2]
[349705882,1737385854753,-1027.87,0.0002164,2]
[349705883,1737385854763,-2164.74,0.0002164,2]
[349705884,1737385854772,-500.0,0.0002164,2]
[349705885,1737385854781,-500.0,0.0002164,2]
[349705886,1737385854792,-500.0,0.0002164,2]
[349705887,1737385854802,-500.0,0.0002164,2]
[349705888,1737385854811,-500.0,0.0002164,2]
[349705889,1737385854820,-339.33468207,0.0002164,2]
[349705890,1737385854830,-1275.59,0.0002164,2]
[349705891,1737385854840,-500.0,0.0002164,2]
[349705892,1737385854849,-500.0,0.00021641,2]
[349705893,1737385854858,-500.0,0.00021641,2]
[349705894,1737385854867,-1000.0,0.00021644,3]
[349705895,1737385854876,-1000.0,0.00021644,3]
[349705896,1737385854886,-1000.0,0.00021644,3]
[349705897,1737385854895,-1000.0,0.00021644,3]
[349705898,1737385854906,-1000.0,0.00021644,3]
[349705899,1737385854916,-1000.0,0.00021644,3]
[349705900,1737385854925,-1000.0,0.00021644,3]
[349705901,1737385854934,-1000.0,0.00021644,3]
[349705902,1737385854943,-1000.0,0.00021644,3]
[349705903,1737385854953,-1000.0,0.00021644,3]
[349705904,1737385854962,-1000.0,0.00021644,3]
[349705905,1737385854971,-1000.0,0.00021644,3]
[349705906,1737385854981,-1000.0,0.00021644,3]
[349705907,1737385854990,-1000.0,0.00021644,3]
[349705908,1737385854999,-1000.0,0.00021644,3]
[349705909,1737385855009,-1000.0,0.00021644,3]
[349705910,1737385855019,-1000.0,0.00021644,3]
[349705911,1737385855028,-1000.0,0.00021644,3]
[349705912,1737385855037,-1000.0,0.00021644,3]
[349705913,1737385855046,-1000.0,0.00021644,3]
[349705914,1737385855056,-1000.0,0.00021644,3]
[349705915,1737385855065,-1000.0,0.00021644,3]
[349705916,1737385855076,-1000.0,0.00021644,3]
[349705917,1737385855086,-1000.0,0.00021644,3]
[349705918,1737385855096,-1008.0,0.00021644,3]
[349705919,1737385855105,-564.38398161,0.00021659,3]
[349705920,1737385855114,-413.59,0.0002166,2]
[349705921,1737385855125,-564.38398161,0.00021693,3]
[349705922,1737385855135,-300.0,0.00021717,2]
[349705923,1737385855144,-150.0,0.00021721,2]
[349705924,1737385855153,-150.0,0.00021727,2]
[349705925,1737385855164,-564.38398161,0.00021728,3]
[349705926,1737385855174,-879.65975877,0.00021738,2]
[349705927,1737385855183,-150.0,0.0002174,2]
[349705928,1737385855192,-546.51,0.00021748,2]
[349705929,1737385855202,-200.0,0.00021756,2]
[349705930,1737385855211,-564.38398161,0.00021762,3]
[349705931,1737385855220,-200.0,0.00021795,2]
[349705932,1737385855230,-564.38398161,0.00021797,3]
[349705933,1737385855239,-150.0,0.00021798,2]
[349705934,1737385855247,-150.0,0.000218,2]
[349705935,1737385855257,-564.38398161,0.00021831,3]
[349705936,1737385855266,-300.0,0.00021849,2]
[349705937,1737385855276,-564.38398161,0.00021866,3]
[349705938,1737385855285,-150.0,0.00021868,2]
[349705939,1737385855296,-200.0,0.00021884,2]
[349705940,1737385855305,-2505.32,0.00021885,7]
[349705941,1737385855315,-2505.32,0.00021885,7]
[349705942,1737385855326,-2505.32,0.00021885,7]
[349705943,1737385855335,-2505.32,0.00021885,7]
[349705944,1737385855344,-500.0,0.0002189,2]
[349705945,1737385855353,-212.13,0.00021897,2]
[349705946,1737385855362,-308.13194844,0.000219,2]
[349705947,1737385855373,-879.65975877,0.000219,2]
[349705948,1737385855383,-1190.0976742,0.000219,2]
[349705949,1737385855392,-564.38398161,0.000219,3]
[349705950,1737385855401,-635.77,0.00021912,2]
[349705951,1737385855412,-500.0,0.00021912,2]
[349705952,1737385855421,-500.0,0.00021912,2]
[349705953,1737385855430,-822.25,0.00021912,2]
[349705954,1737385855440,-500.0,0.00021912,2]
[349705955,1737385855449,-500.0,0.00021912,2]
[349705956,1737385855458,-566.04,0.00021912,2]
[349705957,1737385855468,-500.0,0.00021912,2]
[349705958,1737385855477,-617.79,0.00021912,2]
[349705959,1737385855486,-747.15,0.00021912,2]
[349705960,1737385855495,-500.0,0.00021912,2]
[349705961,1737385855503,-544.09,0.00021912,2]
[349705962,1737385855512,-500.0,0.00021912,2]
[349705963,1737385855521,-500.0,0.00021912,2]
[349705964,1737385855534,-500.0,0.00021912,2]
[349705965,1737385855544,-1429.33,0.00021912,2]
[349705966,1737385855553,-505.68,0.00021912,2]
[349705967,1737385855563,-500.0,0.00021912,2]
[349705968,1737385855572,-500.0,0.00021912,2]
[349705969,1737385855582,-1243.59,0.00021912,2]
[349705970,1737385855591,-500.0,0.00021912,2]
[349705971,1737385855600,-500.0,0.00021912,2]
[349705972,1737385855610,-500.0,0.00021913,2]
[349705973,1737385855620,-500.0,0.00021913,2]
[349705974,1737385855629,-500.0,0.00021913,2]
[349705975,1737385855639,-500.0,0.00021913,2]
[349705976,1737385855648,-671.07,0.00021913,2]
[349705977,1737385855659,-308.735476,0.00021913,2]
[349705978,1737385855668,-598.38,0.00021913,2]
[349705979,1737385855677,-1140.21,0.00021913,2]
[349705980,1737385855686,-500.0,0.00021913,2]
[349705981,1737385855696,-500.0,0.00021913,2]
[349705982,1737385855706,-500.0,0.00021913,2]
[349705983,1737385855715,-500.0,0.00021913,2]
[349705984,1737385855725,-160.230069,0.00021913,2]
[349705985,1737385855734,-156.90548805,0.00021913,2]
[349705986,1737385855744,-982.87,0.00021913,2]
[349705987,1737385855753,-587.84,0.00021913,2]
[349705988,1737385855763,-870.78,0.00021913,2]
[349705989,1737385855772,-983.64,0.00021913,2]
[349705990,1737385855781,-500.0,0.00021913,2]
[349705991,1737385855791,-1063.31,0.00021913,2]
[349705992,1737385855801,-592.84,0.00021913,2]
[349705993,1737385855810,-500.0,0.00021913,2]
[349705994,1737385855819,-1209.6,0.00021913,2]
[349705995,1737385855829,-500.0,0.00021913,2]
[349705996,1737385855839,-500.0,0.00021913,2]
[349705997,1737385855848,-1996.79,0.00021913,2]
[349705998,1737385855857,-713.07,0.00021913,2]
[349705999,1737385855867,-500.0,0.00021913,2]
[349706000,1737385855876,-500.0,0.00021913,2]
[349706001,1737385855885,-500.0,0.00021913,2]
[349706002,1737385855894,-929.71,0.00021913,2]
[349706003,1737385855903,-500.0,0.00021914,2]
[349706004,1737385855913,-500.0,0.00021914,2]
[349706005,1737385855922,-500.0,0.00021914,2]
[349706006,1737385855932,-648.28,0.00021914,2]
[349706007,1737385855941,-268.00900085,0.00021914,2]
[349706008,1737385855950,-500.0,0.00021914,2]
[349706009,1737385855960,-500.0,0.00021914,2]
[349706010,1737385855969,-500.0,0.00021914,2]
[349706011,1737385855979,-500.0,0.00021914,2]
[349706012,1737385855989,-500.0,0.00021914,2]
[349706013,1737385855998,-500.0,0.00021914,2]
[349706014,1737385856008,-500.0,0.00021914,2]
[349706015,1737385856017,-500.0,0.00021914,2]
[349706016,1737385856027,-500.0,0.00021914,2]
[349706017,1737385856036,-500.0,0.00021914,2]
[349706018,1737385856045,-500.0,0.00021914,2]
[349706019,1737385856054,-500.0,0.00021914,2]
[349706020,1737385856063,-500.0,0.00021914,2]
[349706021,1737385856071,-242.72664063,0.00021914,2]
[349706022,1737385856080,-500.0,0.00021914,2]
[349706023,1737385856089,-500.0,0.00021914,2]
[349706024,1737385856099,-500.0,0.00021914,2]
[349706025,1737385856109,-588.23,0.00021914,2]
[349706026,1737385856119,-500.0,0.00021914,2]
[349706027,1737385856129,-500.0,0.00021914,2]
[349706028,1737385856138,-500.0,0.00021914,2]
[349706029,1737385856147,-500.0,0.00021914,2]
[349706030,1737385856157,-500.0,0.00021914,2]
[349706031,1737385856166,-228.92130223,0.00021914,2]
[349706032,1737385856175,-500.0,0.00021914,2]
[349706033,1737385856184,-500.0,0.00021914,2]
[349706034,1737385856194,-500.0,0.00021914,2]
[349706035,1737385856203,-500.0,0.00021914,2]
[349706036,1737385856212,-500.0,0.00021914,2]
[349706037,1737385856222,-512.3,0.00021914,2]
[349706038,1737385856231,-654.4,0.00021914,2]
[349706039,1737385856241,-1583.17,0.00021914,2]
[349706040,1737385856252,-612.74,0.00021914,2]
[349706041,1737385856263,-649.57,0.00021914,2]
[349706042,1737385856273,-1466.09,0.00021914,2]
[349706043,1737385856283,-500.0,0.00021914,2]
[349706044,1737385856293,-697.48,0.00021914,2]
[349706045,1737385856303,-810.55,0.00021914,2]
[349706046,1737385856312,-618.28,0.00021914,2]
[349706047,1737385856321,-970.54,0.00021914,2]
[349706048,1737385856331,-617.45,0.00021914,2]
[349706049,1737385856340,-500.0,0.00021914,2]
[349706050,1737385856349,-457.24341616,0.00021914,2]
[349706051,1737385856358,-500.0,0.00021914,2]
[349706052,1737385856367,-1000.0,0.00021914,2]
[349706053,1737385856377,-487.75107934,0.00021914,2]
[349706054,1737385856386,-1121.34,0.00021914,2]
[349706055,1737385856395,-579.82,0.00021914,2]
[349706056,1737385856404,-500.0,0.00021914,2]
[349706057,1737385856414,-500.0,0.00021914,2]
[349706058,1737385856424,-562.5,0.00021914,2]
[349706059,1737385856433,-500.0,0.00021914,2]
[349706060,1737385856444,-500.0,0.00021914,2]
[349706061,1737385856453,-1380.96,0.00021914,2]
[349706062,1737385856462,-1405.74,0.00021914,2]
[349706063,1737385856472,-1348.38,0.00021914,2]
[349706064,1737385856482,-500.0,0.00021914,2]
[349706065,1737385856492,-500.0,0.00021914,2]
[349706066,1737385856502,-635.89,0.00021914,2]
[349706067,1737385856512,-500.0,0.00021914,2]
[349706068,1737385856522,-500.0,0.00021914,2]
[349706069,1737385856532,-500.0,0.00021914,2]
[349706070,1737385856541,-1027.87,0.00021914,2]
[349706071,1737385856554,-2164.74,0.00021914,2]
[349706072,1737385856563,-500.0,0.00021914,2]
[349706073,1737385856573,-500.0,0.00021914,2]
[349706074,1737385856582,-500.0,0.00021914,2]
[349706075,1737385856594,-500.0,0.00021914,2]
[349706076,1737385856603,-500.0,0.00021914,2]
[349706077,1737385856613,-1275.59,0.00021914,2]
[349706078,1737385856625,-500.0,0.00021914,2]
[349706079,1737385856634,-500.0,0.00021915,2]
[349706080,1737385856644,-196.54233117,0.00021915,2]
[349706081,1737385856654,-150.0,0.00021918,2]
[349706082,1737385856665,-150.0,0.00021945,2]
[349706083,1737385856675,-150.0,0.00021965,2]
[349706084,1737385856685,-20113.06,0.0002197,2]
[349706085,1737385856695,-150.0,0.00021973,4]
[349706086,1737385856705,-150.0,0.00021973,4]
[349706087,1737385856714,-154.32734337,0.00021973,2]
[349706088,1737385856725,-500.0,0.00021973,2]
[349706089,1737385856734,-150.0,0.00021984,2]
[349706090,1737385856744,-1000.0,0.0002199,12]
[349706091,1737385856753,-500.0,0.00021999,2]
[349706092,1737385856763,-401.9346414,0.00022,2]
[349706093,1737385856772,-241.16078484,0.00022,2]
[349706094,1737385856781,-160.77385656,0.00022,2]
[349706095,1737385856791,-2438.46084097,0.00022,2]
[349706096,1737385856800,-1627202.36621728,0.00022,2]
[349706097,1737385856915,-165.498393,0.00020269,2]
[349706098,1737385856924,-687.55,0.00020818,2]
[349706099,1737385856934,-687.55,0.00021092,2]
[349706100,1737385856943,-500.0,0.00021366,2]
[349706101,1737385856953,-825.0,0.00021366,2]
[349706102,1737385856962,-687.55,0.00021366,2]
[349706103,1737385856972,-687.55,0.0002164,2]
[349706104,1737385856981,-687.55,0.00021914,2]
[349706105,1737385856990,-155060.97303687,0.00022,2]
[349706106,1737385857074,-1408.52354689,0.00022,2]
[349706107,1737385857172,-5681.41005302,0.00022,2]
[349706108,1737385857184,-1902.88489702,0.00022,2]
[349706109,1737385857195,-846.61692378,0.00022,2]
[349706110,1737385857206,-4314.52306243,0.00022,2]
[349706111,1737385857221,-4719.57656358,0.00022,2]
[349706112,1737385857233,-15337.21629917,0.00022,2]
[349706113,1737385857244,-256.37999996,0.00022,2]
[349706114,1737385857255,-262.14799,0.00022,2]
[349706115,1737385857268,-1078.8,0.00022,2]
[349706116,1737385960269,177.26,0.00014282,2]
[349706117,1737386030141,150.0,0.00024,120]
[349706118,1737386377726,201.46,0.00012329,2]
[349706120,1737386438502,183.59,0.00010137,2]
[349706122,1737386742018,550.0,0.00015,2]
[349706125,1737386799145,-196.18669779,0.0001654,2]
[349706126,1737386881110,146958.46524009,0.0001,2]
[349706127,1737386881143,50000.0,0.0001,2]
[349706128,1737386881172,90000.0,0.0001,2]
[349706129,1737386881199,1000000.0,0.0001,2]
[349706130,1737386881224,1000000.0,0.0001,2]
[349706131,1737386881248,1000000.0,0.0001,2]
[349706132,1737386881275,2617514.56246948,0.0001,2]
[349706133,1737386891024,488.0,0.00024,120]
[349706144,1737387032380,-322.0,0.00016114,2]
[349706148,1737387032461,-634.23,0.00016114,2]
[349706149,1737387032472,-8.81330221,0.0001654,2]
[349706150,1737387032483,-205.0,0.0001684,2]
[349706151,1737387032494,-600.0,0.00017,2]
[349706152,1737387032505,-205.0,0.0001715,2]
[349706153,1737387032516,-1676.2,0.0001715,2]
[349706154,1737387032527,-173.40642769,0.00017361,2]
[349706155,1737387032537,-205.0,0.0001745,2]
[349706156,1737387032550,-205.0,0.0001775,2]
[349706157,1737387032561,-1000.0,0.00017853,2]
[349706158,1737387032571,-941.22,0.00017995,2]
[349706159,1737387032584,-686.25,0.00018009,2]
[349706160,1737387032594,-250.0,0.00018022,2]
[349706161,1737387032604,-1500.0,0.00018025,2]
[349706162,1737387032613,-205.0,0.0001806,2]
[349706163,1737387032623,-446.3,0.00018079,2]
[349706164,1737387032633,-250.0,0.00018137,2]
[349706165,1737387032643,-500.0,0.00018164,2]
[349706166,1737387032653,-500.0,0.00018164,2]
[349706167,1737387032663,-928.13,0.00018166,2]
[349706168,1737387032673,-205.0,0.0001836,2]
[349706169,1737387032685,-956.23,0.00018378,2]
[349706170,1737387032695,-2852.01,0.00018411,2]
[349706171,1737387032705,-2549.52,0.00018474,2]
[349706172,1737387032716,-200.0,0.00018485,2]
[349706173,1737387032726,-205.0,0.0001866,2]
[349706174,1737387032736,-150.0,0.0001866,2]
[349706175,1737387032746,-327.98,0.00018711,30]
[349706176,1737387032756,-17446.91699369,0.0001878,2]
[349706177,1737387032767,-1002.33,0.00018818,2]
[349706178,1737387032778,-176.03,0.00018829,2]
[349706179,1737387032788,-173.72,0.00018837,2]
[349706180,1737387032807,-200.0,0.00018881,2]
[349706181,1737387032818,-686.25,0.00018909,2]
[349706182,1737387032829,-205.0,0.0001897,2]
[349706183,1737387032839,-166.66,0.00019012,2]
[349706184,1737387032850,-277.07,0.00019016,2]
[349706185,1737387032860,-250.0,0.00019107,2]
[349706186,1737387032871,-8102.67,0.00019237,2]
[349706187,1737387032881,-163.046,0.00019237,2]
[349706188,1737387032892,-11858.39681333,0.00019237,2]
[349706189,1737387032908,-12041.60318667,0.00019237,2]
[349706190,1737387032918,-550.183,0.00019237,2]
[349706191,1737387032929,-500.0,0.0001926,2]
[349706192,1737387032940,-205.0,0.0001927,2]
[349706193,1737387032950,-150.0,0.00019271,2]
[349706194,1737387032961,-151.0,0.00019391,2]
[349706195,1737387033181,-205.0,0.0001957,2]
[349706196,1737387033192,-166.66,0.00019639,2]
[349706197,1737387033203,-543.42,0.00019717,2]
[349706198,1737387033213,-686.25,0.0001981,2]
[349706199,1737387033224,-205.0,0.0001988,2]
[349706200,1737387033234,-1000.0,0.00019896,2]
[349706201,1737387033245,-500.0,0.00019897,2]
[349706202,1737387033255,-1333.3988,0.000199,2]
[349706203,1737387033266,-1000.0,0.000199,2]
[349706204,1737387033275,-153.80145118,0.000199,2]
[349706205,1737387033286,-27925.0559,0.000199,2]
[349706206,1737387033300,-514.0,0.0001997,2]
[349706207,1737387033311,-500.0,0.00019999,2]
[349706208,1737387033321,-29.76755375,0.00019999,2]
[349706209,1737387033347,-470.23244625,0.00019999,2]
[349706210,1737387033359,-500.0,0.00019999,2]
[349706211,1737387033369,-29.75955375,0.00019999,2]
[349706212,1737387033382,-552.67044625,0.00019999,2]
[349706213,1737387033392,-500.0,0.00019999,2]
[349706214,1737387033403,-500.0,0.00019999,2]
[349706215,1737387033413,-500.0,0.00019999,2]
[349706216,1737387033424,-500.43,0.00019999,2]
[349706217,1737387033434,-500.0,0.00019999,2]
[349706218,1737387033444,-500.0,0.00019999,2]
[349706219,1737387033455,-638.77,0.00019999,2]
[349706220,1737387033466,-500.0,0.00019999,2]
[349706221,1737387033476,-164.32352077,0.00019999,2]
[349706222,1737387033489,-335.67647923,0.00019999,2]
[349706223,1737387033500,-500.0,0.00019999,2]
[349706224,1737387033511,-500.0,0.00019999,2]
[349706225,1737387033526,-500.0,0.00019999,2]
[349706226,1737387033538,-500.0,0.00019999,2]
[349706227,1737387033553,-500.0,0.00019999,2]
[349706228,1737387033565,-533.95,0.00019999,2]
[349706229,1737387033577,-500.0,0.00019999,2]
[349706230,1737387033589,-388.3890714,0.00019999,2]
[349706231,1737387033604,-685.7809286,0.00019999,2]
[349706232,1737387033616,-476.27148492,0.00019999,2]
[349706233,1737387033630,-23.72851508,0.00019999,2]
[349706234,1737387033641,-500.0,0.00019999,2]
[349706235,1737387033652,-500.0,0.00019999,2]
[349706236,1737387033662,-104.27389032,0.00019999,2]
[349706237,1737387033851,-395.72610968,0.00019999,2]
[349706238,1737387033862,-500.0,0.00019999,2]
[349706239,1737387033872,-880.88,0.00019999,2]
[349706240,1737387033883,-1083.52,0.00019999,2]
[349706241,1737387033897,-325.16,0.00019999,2]
[349706242,1737387033908,-500.0,0.00019999,2]
[349706243,1737387033918,-2985.353508,0.0002,2]
[349706244,1737387033937,-500.0,0.0002,2]
[349706245,1737387033949,-5361.786,0.0002,2]
[349706246,1737387033963,-847.7000845,0.0002,2]
[349706247,1737387038254,-500.0,0.000199,2]
[349706248,1737387038263,-500.0,0.00019999,2]
[349706249,1737387038272,-519.7,0.00019999,2]
[349706250,1737387038282,-22698.02103575,0.0002,2]
[349706251,1737387038291,-99526.0299356,0.0002,2]
[349706252,1737387038302,-62135.18180329,0.0002,2]
[349706253,1737387038313,-442.28930274,0.0002,2]
[349706254,1737387038324,-1856.66348221,0.0002,2]
[349706255,1737387038341,-14407.70685543,0.0002,2]
[349706256,1737387038400,-35337.74101447,0.0002,2]
[349706257,1737387038412,-66883.90951312,0.0002,2]
[349706258,1737387038424,-55216.54255796,0.0002,2]
[349706259,1737387038435,-19728.8,0.0002,2]
[349706260,1737387038481,-19006.08111947,0.0002,2]
[349706261,1737387038493,-2136.9348,0.0002,2]
[349706262,1737387038560,-2845.85161819,0.0002,2]
[349706263,1737387038570,-1466.35926234,0.0002,2]
[349706264,1737387038579,-6422.90290647,0.0002,2]
[349706265,1737387038590,-1249.84969306,0.0002,2]
[349706269,1737387038830,-980.22,0.0002,2]
[349706273,1737387038841,-857.49219687,0.0002,2]
[349706276,1737387038854,-4057.71578274,0.0002,2]
[349706277,1737387038864,-942.37991866,0.0002,2]
[349706297,1737387039033,-1818.32179973,0.0002,2]
[349706298,1737387039043,-4172.53780731,0.0002,2]
[349706299,1737387039058,-1790.77987893,0.0002,2]
[349706300,1737387039067,-629.78379431,0.0002,2]
[349706301,1737387039077,-265.897,0.00020069,2]
[349706302,1737387039086,-323.9574,0.00020069,2]
[349706303,1737387039095,-2887.6371,0.00020069,2]
[349706304,1737387039104,-1881.32250263,0.0002007,2]
[349706305,1737387039113,-443.877,0.0002007,2]
[349706306,1737387039123,-165.2924,0.0002007,2]
[349706307,1737387039132,-928.1963,0.0002007,2]
[349706308,1737387039141,-1000.0,0.00020084,2]
[349706309,1737387039150,-300.0,0.000201,2]
[349706310,1737387039159,-300.0,0.000201,2]
[349706311,1737387039169,-300.0,0.000201,2]
[349706312,1737387039178,-300.0,0.000201,2]
[349706313,1737387039187,-527.93535649,0.000201,2]
[349706315,1737387039196,-2632.30995223,0.00020144,2]
[349706316,1737387039207,-4200.0,0.00020144,2]
[349706317,1737387039219,-1090.45764777,0.00020144,2]
[349706318,1737387039227,-2013.11335457,0.00020169,2]
[349706319,1737387039238,-30521.38144543,0.00020169,2]
[349706320,1737387039247,-380.5802,0.00020169,2]
[349706321,1737387039257,-167.33202902,0.00020169,2]
[349706322,1737387039266,-2500.0,0.00020169,2]
[349706323,1737387039275,-40684.24888673,0.0002017,2]
[349706324,1737387039286,-700.36229867,0.0002017,2]
[349706325,1737387039300,-277.40067284,0.0002017,2]
[349706327,1737387039311,-2240.18174176,0.0002017,2]
[349706328,1737387039320,-1652.8785,0.0002017,2]
[349706330,1737387039329,-126.60862824,0.0002017,2]
[349706333,1737387039340,-5301.10657176,0.0002017,2]
[349706335,1737387039349,-205.0,0.0002018,2]
[349706337,1737387039359,-941.22,0.00020244,2]